bitfinex/quotes_SOLUSD_20250102
["timestamp","ask_amount","ask_price","bid_price","bid_amount"]
[1735835292091,12.54231465,208.07,208.0,30.0]
[1735835292411,12.54231465,208.07,208.0,42.54231465]
[1735835293108,12.54231465,208.08,208.01,12.54231465]
[1735835293407,12.54231465,208.08,208.01,11.30231465]
[1735835293796,12.54231465,208.07,208.0,42.54231465]
[1735835294197,12.54231465,208.08,208.01,12.54231465]
[1735835295887,12.54231465,208.09,208.02,12.54231465]
[1735835297289,12.54231465,208.1,208.03,12.54231465]
[1735835297811,12.54231465,208.09,208.02,12.54231465]
[1735835298299,12.54231465,208.1,208.03,12.54231465]
[1735835298496,12.54231465,208.1,208.03,42.54231465]
[1735835298819,12.54231465,208.11,208.04,12.54231465]
[1735835299001,12.54231465,208.1,208.03,42.54231465]
[1735835302617,12.54231465,208.11,208.03,42.54231465]
[1735835303624,12.54231465,208.11,208.04,12.54231465]
[1735835304221,7.99626971,208.11,208.04,7.99626971]
[1735835304523,7.99626971,208.11,208.03,37.99626971]
[1735835306120,7.99626971,208.09,208.0,30.72093041]
[1735835306304,7.99626971,208.07,208.0,37.99626971]
[1735835306504,7.99626971,208.1,208.03,37.99626971]
[1735835306831,7.99626971,208.11,208.04,7.99626971]
[1735835307123,7.99626971,208.12,208.04,7.99626971]
[1735835308028,7.99626971,208.11,208.04,7.99626971]
[1735835311530,7.99626971,208.16,208.09,7.99626971]
[1735835311728,1.6245,208.19,208.11,7.99626971]
[1735835311902,7.99626971,208.18,208.1,7.99626971]
[1735835312102,1.6245,208.19,208.1,7.99626971]
[1735835312301,7.99626971,208.17,208.1,7.99626971]
[1735835312617,7.99626971,208.18,208.11,7.99626971]
[1735835312818,7.99626971,208.19,208.11,7.99626971]
[1735835313523,7.99626971,208.19,208.09,30.0]
[1735835313718,7.99626971,208.19,208.11,7.99626971]
[1735835313928,7.99626971,208.18,208.11,7.99626971]
[1735835314329,7.99626971,208.19,208.12,7.99626971]
[1735835314514,7.99626971,208.2,208.12,7.99626971]
[1735835314713,7.99626971,208.21,208.14,7.99626971]
[1735835314909,7.99626971,208.22,208.14,7.99626971]
[1735835315113,7.99626971,208.22,208.15,7.99626971]
[1735835315315,7.99626971,208.22,208.14,7.99626971]
[1735835315910,6.2956,208.26,208.15,7.99626971]
[1735835316117,7.99626971,208.23,208.15,7.99626971]
[1735835316322,7.99626971,208.22,208.15,7.99626971]
[1735835317798,7.99626971,208.23,208.15,7.99626971]
[1735835318017,7.99626971,208.23,208.16,7.99626971]
[1735835319624,7.99626971,208.23,208.15,7.99626971]
[1735835320228,7.99626971,208.23,208.16,7.99626971]
[1735835320428,7.99626971,208.24,208.17,7.99626971]
[1735835322516,7.99626971,208.25,208.18,7.99626971]
[1735835322920,7.99626971,208.26,208.19,7.99626971]
[1735835323121,7.9768,208.39,208.24,7.99626971]
[1735835323327,7.9768,208.39,208.26,7.99626971]
[1735835323328,11.9978,208.37,208.26,7.99626971]
[1735835323539,7.99626971,208.34,208.27,7.99626971]
[1735835324231,7.9768,208.39,208.3,7.99626971]
[1735835324410,7.56293732,208.44,208.3,7.99626971]
[1735835324607,7.99626971,208.36,208.29,7.99626971]
[1735835324812,20.0,208.4,208.22,1.5598]
[1735835325017,7.99626971,208.29,208.22,9.55606971]
[1735835325221,7.99626971,208.31,208.24,37.99626971]
[1735835325422,7.99626971,208.33,208.26,7.99626971]
[1735835325942,1.5649,208.37,208.24,30.0]
[1735835326133,7.99626971,208.27,208.22,1.5598]
[1735835326336,7.99626971,208.29,208.21,37.99626971]
[1735835326531,7.99626971,208.3,208.23,7.99626971]
[1735835326712,20.37647,208.36,208.25,7.99626971]
[1735835326913,7.99626971,208.32,208.25,7.99626971]
[1735835327929,7.99626971,208.32,208.26,7.99626971]
[1735835328130,7.99626971,208.27,208.19,7.99626971]
[1735835328314,7.99626971,208.26,208.18,30.0]
[1735835328628,7.99626971,208.24,208.18,30.0]
[1735835329322,7.99626971,208.23,208.17,1.565]
[1735835329537,7.99626971,208.21,208.17,1.565]
[1735835330137,7.99626971,208.21,208.14,7.99626971]
[1735835331040,1.5916,208.28,208.15,37.99626971]
[1735835331344,7.99626971,208.23,208.15,37.99626971]
[1735835334426,7.99626971,208.23,208.16,7.99626971]
[1735835334634,1.5916,208.28,208.15,7.99626971]
[1735835334635,7.99626971,208.22,208.15,7.99626971]
[1735835334847,7.99626971,208.23,208.15,7.99626971]
[1735835336221,7.99626971,208.23,208.16,7.99626971]
[1735835336424,7.99626971,208.24,208.17,7.99626971]
[1735835336621,7.99626971,208.23,208.16,7.99626971]
[1735835338649,7.99626971,208.23,208.15,7.99626971]
[1735835338817,7.99626971,208.25,208.18,7.99626971]
[1735835339633,7.99626971,208.25,208.19,7.99626971]
[1735835339837,7.99626971,208.27,208.2,7.99626971]
[1735835340331,20.0,208.32,208.22,7.99626971]
[1735835340545,7.99626971,208.28,208.22,7.99626971]
[1735835340719,7.99626971,208.28,208.21,7.99626971]
[1735835340922,7.99626971,208.28,208.22,7.99626971]
[1735835341133,7.99626971,208.28,208.21,9.53956971]
[1735835341424,7.99626971,208.25,208.21,1.5433]
[1735835341623,7.99626971,208.27,208.21,1.5433]
[1735835342230,7.99626971,208.28,208.21,9.53956971]
[1735835342525,7.99626971,208.27,208.21,9.53956971]
[1735835343353,7.99626971,208.27,208.21,1.5433]
[1735835343536,7.99626971,208.25,208.21,1.5433]
[1735835343842,7.99626971,208.25,208.19,14.45906971]
[1735835344050,7.99626971,208.25,208.18,7.99626971]
[1735835344922,32.36154884,208.3,208.23,7.99626971]
[1735835344923,7.99626971,208.3,208.23,7.99626971]
[1735835345131,7.99626971,208.33,208.26,7.99626971]
[1735835346547,7.99626971,208.33,208.27,7.99626971]
[1735835346740,7.99626971,208.33,208.26,7.99626971]
[1735835347456,7.99626971,208.3,208.23,6.4337]
[1735835347649,7.99626971,208.3,208.22,7.99626971]
[1735835347850,7.99626971,208.29,208.22,7.99626971]
[1735835348155,7.99626971,208.32,208.24,7.99626971]
[1735835348929,19.99586971,208.34,208.26,7.99626971]
[1735835349252,7.99626971,208.33,208.25,7.99626971]
[1735835349459,7.99626971,208.32,208.25,7.99626971]
[1735835350130,8.12175971,208.33,208.26,7.99626971]
[1735835350330,0.12549,208.33,208.26,7.99626971]
[1735835350856,11.9957,208.41,208.31,7.99626971]
[1735835351029,7.99626971,208.38,208.31,7.99626971]
[1735835351449,7.99626971,208.39,208.31,7.99626971]
[1735835351757,8.12175971,208.36,208.28,9.59026971]
[1735835351931,7.99626971,208.34,208.28,1.594]
[1735835352250,0.12549,208.34,208.28,1.594]
[1735835352551,7.99626971,208.34,208.28,1.594]
[1735835353425,7.99626971,208.35,208.28,9.59026971]
[1735835353645,7.99626971,208.35,208.28,1.594]
[1735835353837,11.9955,208.42,208.34,7.99626971]
[1735835354026,7.99626971,208.42,208.34,7.99626971]
[1735835354226,7.99626971,208.42,208.35,7.99626971]
[1735835354431,11.9933,208.45,208.28,1.594]
[1735835354432,7.99626971,208.38,208.28,1.594]
[1735835354643,0.12549,208.39,208.31,7.99626971]
[1735835354862,8.12175971,208.39,208.32,7.99626971]
[1735835355037,0.12549,208.39,208.32,7.99626971]
[1735835355557,0.12549,208.39,208.28,1.594]
[1735835355730,8.12175971,208.39,208.31,7.99626971]
[1735835356056,0.12549,208.39,208.32,7.99626971]
[1735835356258,0.12549,208.39,208.32,12.46086099]
[1735835356552,0.12549,208.39,208.33,12.46086099]
[1735835356757,32.46086099,208.41,208.33,12.46086099]
[1735835356961,20.0,208.41,208.35,12.46086099]
[1735835357134,12.46086099,208.42,208.35,12.46086099]
[1735835357334,0.12549,208.42,208.36,12.46086099]
[1735835357548,0.37647,208.42,208.35,12.46086099]
[1735835357752,12.83733099,208.42,208.35,12.46086099]
[1735835357946,12.46086099,208.42,208.35,12.46086099]
[1735835358137,32.46086099,208.43,208.35,12.46086099]
[1735835358958,0.12549,208.41,208.35,12.46086099]
[1735835359139,12.46086099,208.41,208.34,12.46086099]
[1735835359338,32.46086099,208.43,208.35,12.46086099]
[1735835359858,12.58635099,208.42,208.35,12.46086099]
[1735835360039,12.46086099,208.41,208.34,12.46086099]
[1735835360542,12.46086099,208.4,208.33,12.46086099]
[1735835360749,12.46086099,208.4,208.31,1.20188261]
[1735835360750,12.46086099,208.39,208.32,12.46086099]
[1735835361559,12.83733099,208.4,208.33,12.46086099]
[1735835361741,12.46086099,208.39,208.32,12.46086099]
[1735835363079,12.83733099,208.4,208.33,12.46086099]
[1735835363356,0.37647,208.4,208.34,12.46086099]
[1735835363758,12.83733099,208.4,208.33,12.46086099]
[1735835363955,12.46086099,208.39,208.32,12.46086099]
[1735835365464,12.46086099,208.39,208.28,1.594]
[1735835365465,12.46086099,208.36,208.29,12.46086099]
[1735835365766,12.46086099,208.36,208.28,14.05486099]
[1735835366068,12.46086099,208.36,208.29,12.46086099]
[1735835367266,0.12549,208.36,208.3,12.46086099]
[1735835367436,0.12549,208.36,208.31,12.46086099]
[1735835367636,0.12549,208.36,208.32,12.46086099]
[1735835368038,0.12549,208.37,208.31,12.46086099]
[1735835368353,0.12549,208.37,208.28,1.594]
[1735835368563,0.12549,208.37,208.31,12.46086099]
[1735835370065,12.58635099,208.37,208.3,12.46086099]
[1735835370374,0.12549,208.35,208.29,12.46086099]
[1735835371146,8.055,208.38,208.31,12.46086099]
[1735835371147,20.51586099,208.38,208.31,12.46086099]
[1735835371487,0.12549,208.37,208.31,12.46086099]
[1735835371771,12.58635099,208.37,208.3,12.46086099]
[1735835372967,12.46086099,208.36,208.29,12.46086099]
[1735835375255,0.37647,208.37,208.3,12.46086099]
[1735835375454,12.83733099,208.37,208.3,12.46086099]
[1735835375856,0.12549,208.35,208.29,12.46086099]
[1735835376250,0.12549,208.35,208.29,7.97715067]
[1735835376983,0.12549,208.36,208.3,7.97715067]
[1735835377583,0.12549,208.36,208.29,7.97715067]
[1735835378368,8.10264067,208.36,208.29,7.97715067]
[1735835379996,0.12549,208.36,208.3,7.97715067]
[1735835381494,0.12549,208.36,208.31,7.97715067]
[1735835381679,0.25098,208.37,208.32,7.97715067]
[1735835382201,11.995,208.42,208.35,7.97715067]
[1735835382372,19.97215067,208.42,208.35,7.97715067]
[1735835382692,24.153354,208.41,208.35,7.97715067]
[1735835382895,19.97215067,208.42,208.35,7.97715067]
[1735835383071,7.97715067,208.41,208.34,7.97715067]
[1735835383274,7.97715067,208.4,208.33,7.97715067]
[1735835384402,8.35362067,208.41,208.34,7.97715067]
[1735835386380,0.37647,208.41,208.36,7.97715067]
[1735835386580,1.6046,208.43,208.36,7.97715067]
[1735835386802,1.6046,208.43,208.37,7.97715067]
[1735835387506,20.0,208.43,208.37,7.97715067]
[1735835387702,0.25098,208.45,208.38,7.97715067]
[1735835387886,8.22813067,208.45,208.38,7.97715067]
[1735835388404,8.10264067,208.45,208.38,7.97715067]
[1735835388897,11.9928,208.46,208.4,7.97715067]
[1735835389271,11.9928,208.46,208.33,1.96469279]
[1735835389272,0.37647,208.45,208.39,7.97715067]
[1735835389803,7.97715067,208.46,208.39,7.97715067]
[1735835390502,7.97715067,208.43,208.36,11.14350185]
[1735835390704,7.97715067,208.43,208.36,9.17880906]
[1735835390911,7.97715067,208.43,208.36,7.97715067]
[1735835391086,0.37647,208.44,208.37,7.97715067]
[1735835391290,0.37647,208.44,208.39,7.97715067]
[1735835391486,0.37647,208.44,208.38,7.97715067]
[1735835391975,7.97715067,208.47,208.4,7.97715067]
[1735835392670,7.97715067,208.46,208.39,7.97715067]
[1735835394509,1.91152769,208.51,208.42,7.97715067]
[1735835394510,13.90142769,208.51,208.42,7.97715067]
[1735835394801,7.97715067,208.5,208.43,7.97715067]
[1735835395907,7.97715067,208.49,208.43,7.97715067]
[1735835396102,7.97715067,208.49,208.42,7.97715067]
[1735835396309,7.97715067,208.48,208.41,7.97715067]
[1735835396484,7.97715067,208.47,208.4,7.97715067]
[1735835397678,7.97715067,208.47,208.36,1.20155479]
[1735835397879,7.97715067,208.44,208.37,7.97715067]
[1735835398081,7.97715067,208.45,208.38,7.97715067]
[1735835398581,7.97715067,208.46,208.39,7.97715067]
[1735835398799,7.97715067,208.48,208.41,7.97715067]
[1735835398980,0.37647,208.48,208.42,7.97715067]
[1735835399533,7.97715067,208.5,208.43,7.97715067]
[1735835400008,7.97715067,208.49,208.42,7.97715067]
[1735835400510,7.97715067,208.48,208.41,7.97715067]
[1735835401225,24.153354,208.52,208.36,30.7196319]
[1735835401226,24.153354,208.52,208.42,7.97715067]
[1735835401425,7.97715067,208.49,208.42,7.97715067]
[1735835401588,7.97715067,208.48,208.37,3.15819684]
[1735835401913,7.97715067,208.45,208.38,7.97715067]
[1735835402119,7.97715067,208.46,208.39,7.97715067]
[1735835402621,7.97715067,208.46,208.38,7.97715067]
[1735835402993,7.97715067,208.45,208.38,7.97715067]
[1735835403702,7.97715067,208.44,208.37,7.97715067]
[1735835404119,7.97715067,208.44,208.36,7.97715067]
[1735835404328,7.97715067,208.42,208.35,1.20161873]
[1735835404621,7.97715067,208.41,208.35,1.20161873]
[1735835405001,7.97715067,208.41,208.32,1.20161873]
[1735835405216,7.97715067,208.41,208.33,7.97715067]
[1735835405398,7.97715067,208.41,208.32,1.20161873]
[1735835405399,7.97715067,208.42,208.35,7.97715067]
[1735835405590,8.35362067,208.43,208.36,7.97715067]
[1735835406222,7.97715067,208.42,208.33,1.20161873]
[1735835406423,7.97715067,208.42,208.35,7.97715067]
[1735835406732,7.97715067,208.4,208.34,1.20161873]
[1735835407216,0.37647,208.44,208.35,7.97715067]
[1735835407396,7.97715067,208.43,208.35,7.97715067]
[1735835407596,7.97715067,208.44,208.36,7.97715067]
[1735835408123,8.35362067,208.42,208.34,7.97715067]
[1735835408534,8.35362067,208.4,208.33,7.97715067]
[1735835408703,7.97715067,208.4,208.33,7.97715067]
[1735835409031,7.97715067,208.41,208.34,7.97715067]
[1735835409215,7.97715067,208.4,208.33,7.97715067]
[1735835410101,0.37647,208.37,208.31,7.97715067]
[1735835410305,8.35362067,208.37,208.3,9.1787694]
[1735835410612,7.97715067,208.39,208.32,7.97715067]
[1735835410812,0.37647,208.39,208.32,7.97715067]
[1735835411011,8.35362067,208.39,208.32,7.97715067]
[1735835411211,0.37647,208.39,208.32,7.97715067]
[1735835411836,8.35362067,208.39,208.32,7.97715067]
[1735835412130,8.35362067,208.39,208.28,3.15830126]
[1735835412131,7.97715067,208.38,208.31,7.97715067]
[1735835412323,7.97715067,208.37,208.3,7.97715067]
[1735835412529,8.10264067,208.38,208.31,7.97715067]
[1735835412834,0.12549,208.38,208.32,7.97715067]
[1735835413000,0.12549,208.38,208.29,1.20161873]
[1735835413001,0.12549,208.38,208.33,7.97715067]
[1735835413418,0.12549,208.38,208.32,7.97715067]
[1735835413613,9.47845067,208.4,208.32,7.97715067]
[1735835413819,1.5013,208.4,208.33,7.97715067]
[1735835414022,1.5013,208.4,208.29,1.20161873]
[1735835414023,1.5013,208.4,208.34,7.97715067]
[1735835414548,7.97715067,208.43,208.35,7.97715067]
[1735835414719,7.97715067,208.44,208.36,7.97715067]
[1735835415331,7.9407,208.45,208.36,7.97715067]
[1735835415534,7.97715067,208.43,208.36,7.97715067]
[1735835415859,32.13050467,208.42,208.34,7.97715067]
[1735835416351,7.97715067,208.39,208.32,1.20161873]
[1735835416853,0.37647,208.4,208.34,7.97715067]
[1735835417637,7.97715067,208.41,208.34,7.97715067]
[1735835417842,0.37647,208.4,208.34,7.97715067]
[1735835418151,0.37647,208.4,208.32,7.97715067]
[1735835418335,0.37647,208.4,208.34,7.97715067]
[1735835418949,27.91115067,208.45,208.36,7.97715067]
[1735835419451,24.153354,208.44,208.36,7.97715067]
[1735835419660,7.97715067,208.43,208.36,7.97715067]
[1735835420252,7.97715067,208.43,208.32,1.20161873]
[1735835420453,7.97715067,208.41,208.34,7.97715067]
[1735835420962,0.37647,208.38,208.33,1.20161873]
[1735835421333,7.97715067,208.37,208.3,1.96045591]
[1735835421531,7.97715067,208.37,208.3,7.97715067]
[1735835422231,0.37647,208.36,208.31,1.20198427]
[1735835422643,0.12549,208.36,208.31,1.20198427]
[1735835423059,24.153354,208.38,208.3,7.97715067]
[1735835423268,24.153354,208.38,208.3,9.93760658]
[1735835423929,24.153354,208.38,208.3,7.97715067]
[1735835424166,8.35362067,208.36,208.27,1.96045591]
[1735835424357,8.35362067,208.36,208.31,1.20199689]
[1735835425034,8.35362067,208.36,208.3,1.20199689]
[1735835425452,7.97715067,208.34,208.3,1.20199689]
[1735835425641,8.35362067,208.34,208.3,1.20199689]
[1735835425957,0.37647,208.34,208.27,1.96045591]
[1735835426130,0.37647,208.34,208.28,7.97715067]
[1735835426326,15.68955067,208.36,208.29,7.97715067]
[1735835426561,7.7124,208.36,208.3,7.97715067]
[1735835426731,15.68955067,208.36,208.29,7.97715067]
[1735835427137,0.12549,208.35,208.29,7.97715067]
[1735835428238,0.12549,208.35,208.3,7.97715067]
[1735835428439,1.6614,208.36,208.3,7.97715067]
[1735835428747,1.6614,208.36,208.31,7.97715067]
[1735835428935,24.153354,208.4,208.32,7.97715067]
[1735835429142,24.153354,208.38,208.32,7.97715067]
[1735835430338,8.35362067,208.38,208.3,1.20213519]
[1735835430543,8.35362067,208.38,208.3,9.17928586]
[1735835430946,8.35362067,208.38,208.3,7.97715067]
[1735835431357,8.35362067,208.38,208.31,7.97715067]
[1735835431557,24.153354,208.38,208.32,7.97715067]
[1735835431771,6.5672,208.41,208.33,7.97715067]
[1735835431772,14.54435067,208.41,208.33,7.97715067]
[1735835432077,6.5672,208.41,208.36,7.97715067]
[1735835433151,6.5672,208.41,208.37,7.97715067]
[1735835433343,7.786,208.49,208.4,7.97715067]
[1735835433669,7.97715067,208.48,208.41,7.97715067]
[1735835433873,0.12549,208.47,208.4,7.97715067]
[1735835434040,8.10264067,208.47,208.4,7.97715067]
[1735835434236,24.027864,208.46,208.41,7.97715067]
[1735835434549,15.76315067,208.49,208.42,7.97715067]
[1735835434964,24.153354,208.48,208.42,7.97715067]
[1735835435457,0.12549,208.48,208.42,7.97715067]
[1735835435637,1.5437,208.49,208.44,7.97715067]
[1735835437569,7.6551,208.54,208.47,7.97715067]
[1735835437739,15.63225067,208.54,208.47,7.97715067]
[1735835437939,23.776884,208.53,208.47,7.97715067]
[1735835439164,23.776884,208.53,208.48,7.97715067]
[1735835439488,1.5284,208.58,208.52,7.97715067]
[1735835439788,7.97715067,208.6,208.53,7.97715067]
[1735835439959,7.97715067,208.61,208.54,7.97715067]
[1735835440158,7.97715067,208.61,208.47,30.71929194]
[1735835440159,7.97715067,208.63,208.56,7.97715067]
[1735835440474,7.97715067,208.6,208.53,7.97715067]
[1735835440653,7.97715067,208.59,208.52,7.97715067]
[1735835441085,7.97715067,208.56,208.49,7.97715067]
[1735835441285,20.0,208.6,208.47,1.94933261]
[1735835441472,7.97715067,208.58,208.51,7.97715067]
[1735835442176,7.97715067,208.57,208.5,7.97715067]
[1735835442365,24.027864,208.62,208.46,11.9921]
[1735835442366,12.43863012,208.58,208.51,12.43863012]
[1735835443789,24.153354,208.57,208.5,12.43863012]
[1735835443994,12.43863012,208.57,208.5,12.43863012]
[1735835444288,36.59198412,208.55,208.48,12.43863012]
[1735835444494,12.43863012,208.53,208.46,12.43863012]
[1735835444670,12.43863012,208.51,208.44,1.6451]
[1735835444990,12.43863012,208.51,208.44,14.08373012]
[1735835445175,12.43863012,208.52,208.45,12.43863012]
[1735835445571,36.59198412,208.5,208.43,12.43863012]
[1735835445776,12.43863012,208.49,208.42,12.43863012]
[1735835446095,12.81510012,208.5,208.43,12.43863012]
[1735835446596,12.43863012,208.48,208.41,12.43863012]
[1735835446763,12.43863012,208.47,208.39,12.43863012]
[1735835446968,12.43863012,208.44,208.37,12.43863012]
[1735835447290,12.81510012,208.41,208.34,12.43863012]
[1735835447494,12.43863012,208.4,208.33,13.6402582]
[1735835447697,12.43863012,208.4,208.33,3.15370697]
[1735835447995,12.43863012,208.4,208.32,12.43863012]
[1735835448485,30.071184,208.45,208.32,12.43863012]
[1735835448486,36.59198412,208.39,208.32,12.43863012]
[1735835448684,36.59198412,208.39,208.31,12.43863012]
[1735835449003,6.2943,208.45,208.31,12.43863012]
[1735835449004,24.153354,208.37,208.31,12.43863012]
[1735835449167,12.43863012,208.39,208.31,12.43863012]
[1735835449503,12.43863012,208.39,208.32,12.43863012]
[1735835449669,12.81510012,208.38,208.31,12.43863012]
[1735835450096,12.43863012,208.42,208.35,12.43863012]
[1735835450593,36.59198412,208.41,208.33,12.43863012]
[1735835450895,12.43863012,208.4,208.32,12.43863012]
[1735835451197,12.43863012,208.41,208.34,12.43863012]
[1735835452701,12.81510012,208.4,208.33,12.43863012]
[1735835453304,0.37647,208.4,208.34,12.43863012]
[1735835454492,12.43863012,208.37,208.3,15.59065238]
[1735835454675,12.43863012,208.42,208.34,12.43863012]
[1735835454995,36.59198412,208.41,208.34,12.43863012]
[1735835455198,36.59198412,208.41,208.33,12.43863012]
[1735835455403,12.81510012,208.39,208.32,12.43863012]
[1735835455698,0.37647,208.39,208.32,12.43863012]
[1735835455902,36.59198412,208.39,208.32,12.43863012]
[1735835456110,24.153354,208.37,208.3,12.43863012]
[1735835456272,36.59198412,208.37,208.3,12.43863012]
[1735835456700,24.153354,208.37,208.3,12.43863012]
[1735835456870,36.59198412,208.37,208.3,12.43863012]
[1735835457667,36.59198412,208.37,208.24,3.15529494]
[1735835457871,24.153354,208.35,208.28,12.43863012]
[1735835458397,24.153354,208.35,208.27,12.43863012]
[1735835458398,12.81510012,208.35,208.27,12.43863012]
[1735835458696,24.153354,208.33,208.26,12.43863012]
[1735835458867,24.153354,208.33,208.27,12.43863012]
[1735835459271,0.37647,208.33,208.28,12.43863012]
[1735835460502,12.81510012,208.33,208.26,12.43863012]
[1735835460677,0.37647,208.33,208.26,12.43863012]
[1735835461072,0.37647,208.33,208.27,12.43863012]
[1735835461299,12.81510012,208.33,208.26,12.43863012]
[1735835461682,0.37647,208.33,208.27,12.43863012]
[1735835462179,12.81510012,208.33,208.26,12.43863012]
[1735835462509,12.81510012,208.33,208.25,12.43863012]
[1735835462689,12.81510012,208.33,208.26,12.43863012]
[1735835463095,36.59198412,208.29,208.22,12.43863012]
[1735835463276,36.59198412,208.27,208.21,3.15524039]
[1735835463980,12.43863012,208.29,208.22,12.43863012]
[1735835464186,12.43863012,208.33,208.26,12.43863012]
[1735835464493,24.153354,208.32,208.26,12.43863012]
[1735835465502,0.37647,208.28,208.22,12.43863012]
[1735835465674,24.153354,208.28,208.23,12.43863012]
[1735835465882,0.37647,208.28,208.24,12.43863012]
[1735835466303,24.153354,208.26,208.2,12.43863012]
[1735835466510,1.6398,208.27,208.22,12.43863012]
[1735835466723,1.6398,208.27,208.24,12.43863012]
[1735835467019,1.6398,208.32,208.26,12.43863012]
[1735835467306,6.4864,208.35,208.31,12.43863012]
[1735835468183,6.4864,208.35,208.29,12.43863012]
[1735835468512,36.59198412,208.34,208.26,15.59387051]
[1735835468807,36.59198412,208.34,208.27,12.43863012]
[1735835469607,36.59198412,208.34,208.26,12.43863012]
[1735835469790,6.4864,208.35,208.22,3.54429987]
[1735835469791,36.59198412,208.32,208.25,12.43863012]
[1735835470108,36.59198412,208.32,208.26,12.43863012]
[1735835470307,6.4864,208.35,208.28,12.43863012]
[1735835470489,18.92503012,208.35,208.28,12.43863012]
[1735835470808,24.153354,208.34,208.27,12.43863012]
[1735835471606,18.92503012,208.35,208.32,12.43863012]
[1735835471607,6.4864,208.35,208.32,12.43863012]
[1735835471809,1.6398,208.37,208.32,12.43863012]
[1735835472138,1.6398,208.37,208.31,12.43863012]
[1735835472419,1.6398,208.37,208.33,12.43863012]
[1735835473510,1.6398,208.37,208.31,12.43863012]
[1735835474408,1.6398,208.37,208.29,12.43863012]
[1735835475620,12.43863012,208.41,208.34,12.43863012]
[1735835475939,12.43863012,208.41,208.28,42.003]
[1735835475940,7.56293732,208.56,208.41,30.0]
[1735835476228,7.56293732,208.56,208.49,12.43863012]
[1735835476406,7.56293732,208.56,208.51,12.43863012]
[1735835476798,6.0209,208.57,208.51,12.43863012]
[1735835477033,24.153354,208.52,208.45,12.43863012]
[1735835477808,24.027864,208.52,208.45,12.43863012]
[1735835478704,0.12549,208.51,208.45,12.43863012]
[1735835479127,12.56412012,208.51,208.43,12.43863012]
[1735835479297,0.12549,208.51,208.45,12.43863012]
[1735835480127,0.12549,208.51,208.44,12.43863012]
[1735835480323,0.12549,208.51,208.45,12.43863012]
[1735835480820,23.776884,208.56,208.38,30.71952043]
[1735835480821,0.12549,208.49,208.43,12.43863012]
[1735835482030,0.12549,208.49,208.42,12.43863012]
[1735835482530,36.46649412,208.48,208.41,12.43863012]
[1735835482907,24.027864,208.48,208.42,12.43863012]
[1735835483223,24.027864,208.48,208.43,12.43863012]
[1735835483404,0.25098,208.48,208.44,12.43863012]
[1735835483605,12.43863012,208.52,208.39,11.9966]
[1735835483808,12.43863012,208.5,208.43,12.43863012]
[1735835484039,12.43863012,208.51,208.44,12.43863012]
[1735835484205,0.37647,208.51,208.45,12.43863012]
[1735835485418,12.81510012,208.51,208.44,12.43863012]
[1735835485629,12.81510012,208.49,208.42,12.43863012]
[1735835485804,36.59198412,208.45,208.38,12.43863012]
[1735835486010,12.43863012,208.44,208.37,12.43863012]
[1735835486700,12.81510012,208.45,208.38,12.43863012]
[1735835487043,24.153354,208.45,208.39,12.43863012]
[1735835487697,0.37647,208.45,208.39,12.43863012]
[1735835488303,12.81510012,208.45,208.38,12.43863012]
[1735835488512,0.37647,208.43,208.36,12.43863012]
[1735835489410,23.776884,208.42,208.36,12.43863012]
[1735835489907,0.37647,208.43,208.38,12.43863012]
[1735835490321,0.37647,208.43,208.37,12.43863012]
[1735835490925,0.37647,208.43,208.38,12.43863012]
[1735835491345,12.43863012,208.46,208.39,12.43863012]
[1735835491726,36.59198412,208.45,208.38,12.43863012]
[1735835491927,23.776884,208.44,208.38,12.43863012]
[1735835492350,23.776884,208.42,208.36,12.43863012]
[1735835492754,24.153354,208.43,208.37,12.43863012]
[1735835493259,12.43863012,208.45,208.38,12.43863012]
[1735835493552,36.21551412,208.46,208.38,12.43863012]
[1735835493854,0.37647,208.45,208.38,12.43863012]
[1735835494147,12.81510012,208.45,208.38,12.43863012]
[1735835494844,8.099,208.47,208.4,12.43863012]
[1735835495049,12.43863012,208.5,208.43,12.43863012]
[1735835495419,24.153354,208.49,208.43,12.43863012]
[1735835495624,12.43863012,208.5,208.43,12.43863012]
[1735835495942,12.43863012,208.49,208.41,12.43863012]
[1735835496442,7.5625,208.52,208.41,12.43863012]
[1735835496443,0.12549,208.47,208.41,12.43863012]
[1735835496644,12.56412012,208.45,208.38,12.43863012]
[1735835496963,0.37647,208.42,208.36,12.43863012]
[1735835497656,0.37647,208.42,208.37,12.43863012]
[1735835497849,0.37647,208.42,208.38,12.43863012]
[1735835498150,0.37647,208.42,208.37,12.43863012]
[1735835498446,12.43863012,208.47,208.39,12.43863012]
[1735835498652,12.43863012,208.48,208.4,12.43863012]
[1735835498855,24.153354,208.47,208.4,12.43863012]
[1735835499060,24.153354,208.47,208.41,12.43863012]
[1735835499343,24.153354,208.47,208.4,12.43863012]
[1735835499547,12.43863012,208.51,208.43,12.43863012]
[1735835499728,12.43863012,208.53,208.45,12.43863012]